[Event "*** Titled Tuesday Blitz"]
[Site "Chess.com"]
[Date "2021.03.16"]
[Round "4"]
[White "aljado"]
[Black "Andreikka"]
[Result "1/2-1/2"]
[WhiteElo "2136"]
[BlackElo "2876"]
[TimeControl "180+1"]
[EndTime "10:39:10 PDT"]
[Termination "Game drawn - timeout vs insufficient material"]

1. e4 {[%clk 0:03:00.9]} 1... e5 {[%clk 0:02:59.3]} 2. Nf3 {[%clk 0:02:59.8]}
2... Nc6 {[%clk 0:02:58.9]} 3. Bb5 {[%clk 0:02:59.3]} 3... d6 {[%clk 0:02:56.9]}
4. O-O {[%clk 0:02:57.7]} 4... Bd7 {[%clk 0:02:57.2]} 5. c3 {[%clk 0:02:56]}
5... Nge7 {[%clk 0:02:57.4]} 6. d4 {[%clk 0:02:54.8]} 6... Ng6 {[%clk
0:02:57.8]} 7. Be3 {[%clk 0:02:50.2]} 7... Be7 {[%clk 0:02:57.1]} 8. Nbd2 {[%clk
0:02:48.1]} 8... O-O {[%clk 0:02:56.8]} 9. d5 {[%clk 0:02:38.9]} 9... Nb8 {[%clk
0:02:56.2]} 10. Bxd7 {[%clk 0:02:38.4]} 10... Nxd7 {[%clk 0:02:56.1]} 11. c4
{[%clk 0:02:36]} 11... a5 {[%clk 0:02:55.5]} 12. Rb1 {[%clk 0:02:29.9]} 12... h6
{[%clk 0:02:55.4]} 13. b4 {[%clk 0:02:28.5]} 13... axb4 {[%clk 0:02:55.1]} 14.
Rxb4 {[%clk 0:02:27.9]} 14... b6 {[%clk 0:02:55.6]} 15. a4 {[%clk 0:02:25]}
15... Kh8 {[%clk 0:02:20.1]} 16. Rb5 {[%clk 0:02:22.3]} 16... Qc8 {[%clk
0:02:17.2]} 17. a5 {[%clk 0:02:20.1]} 17... bxa5 {[%clk 0:02:15.9]} 18. Qa4
{[%clk 0:02:17.4]} 18... Nf4 {[%clk 0:02:04.5]} 19. Bxf4 {[%clk 0:02:13.6]}
19... exf4 {[%clk 0:02:04.3]} 20. Rxa5 {[%clk 0:02:12.5]} 20... Nc5 {[%clk
0:02:04.6]} 21. Qa2 {[%clk 0:02:07.3]} 21... Rxa5 {[%clk 0:02:03.9]} 22. Qxa5
{[%clk 0:02:07]} 22... Bf6 {[%clk 0:02:04.6]} 23. h3 {[%clk 0:01:57.7]} 23...
Re8 {[%clk 0:02:03.7]} 24. Re1 {[%clk 0:01:47.3]} 24... Qb7 {[%clk 0:01:56.1]}
25. Rb1 {[%clk 0:01:26]} 25... Qc8 {[%clk 0:01:53.5]} 26. Re1 {[%clk 0:01:22.6]}
26... g5 {[%clk 0:01:53.5]} 27. Kh2 {[%clk 0:01:15.6]} 27... Bg7 {[%clk
0:01:51.5]} 28. Ng1 {[%clk 0:01:15]} 28... Nd3 {[%clk 0:01:50.1]} 29. Re2 {[%clk
0:01:12.8]} 29... Bd4 {[%clk 0:01:45.6]} 30. Ngf3 {[%clk 0:01:07.6]} 30... Bg7
{[%clk 0:01:45.3]} 31. Ne1 {[%clk 0:01:03.6]} 31... Nc5 {[%clk 0:01:42.9]} 32.
f3 {[%clk 0:00:59.4]} 32... h5 {[%clk 0:01:41]} 33. Qb5 {[%clk 0:00:52.8]} 33...
f5 {[%clk 0:01:39.8]} 34. Nc2 {[%clk 0:00:49.6]} 34... g4 {[%clk 0:01:38.1]} 35.
Nb4 {[%clk 0:00:44.6]} 35... g3+ {[%clk 0:01:32.2]} 36. Kg1 {[%clk 0:00:42.6]}
36... fxe4 {[%clk 0:01:32]} 37. Nxe4 {[%clk 0:00:40.6]} 37... Bd4+ {[%clk
0:01:31.9]} 38. Kf1 {[%clk 0:00:38.2]} 38... Nxe4 {[%clk 0:01:30.9]} 39. Rxe4
{[%clk 0:00:36.7]} 39... Rxe4 {[%clk 0:01:29.8]} 40. fxe4 {[%clk 0:00:36.1]}
40... f3 {[%clk 0:01:30.1]} 41. Nc6 {[%clk 0:00:33]} 41... Bb6 {[%clk
0:01:15.1]} 42. Qb2+ {[%clk 0:00:30.3]} 42... Kh7 {[%clk 0:01:13.8]} 43. Qf6
{[%clk 0:00:28.8]} 43... Qe8 {[%clk 0:01:00.8]} 44. Qxf3 {[%clk 0:00:26.6]}
44... Bf2 {[%clk 0:00:56.8]} 45. Qf5+ {[%clk 0:00:25.6]} 45... Kg7 {[%clk
0:00:56.9]} 46. Qg5+ {[%clk 0:00:24.1]} 46... Kh7 {[%clk 0:00:57.1]} 47. Ne7
{[%clk 0:00:22.2]} 47... Qf7 {[%clk 0:00:55.8]} 48. Nf5 {[%clk 0:00:20.4]} 48...
Qg6 {[%clk 0:00:51.7]} 49. Qe7+ {[%clk 0:00:18.9]} 49... Kg8 {[%clk 0:00:51.4]}
50. Qd8+ {[%clk 0:00:18.1]} 50... Kf7 {[%clk 0:00:44.4]} 51. Qxc7+ {[%clk
0:00:15.3]} 51... Kf8 {[%clk 0:00:40.6]} 52. Qxd6+ {[%clk 0:00:15.1]} 52... Kf7
{[%clk 0:00:39.5]} 53. Qxg6+ {[%clk 0:00:11]} 53... Kxg6 {[%clk 0:00:40.4]} 54.
Ke2 {[%clk 0:00:09.8]} 54... Kf6 {[%clk 0:00:39.4]} 55. Kf3 {[%clk 0:00:08.7]}
55... Ke5 {[%clk 0:00:39.9]} 56. Nxg3 {[%clk 0:00:08.5]} 56... Bc5 {[%clk
0:00:39.2]} 57. Nxh5 {[%clk 0:00:06.4]} 57... Be7 {[%clk 0:00:39.4]} 58. g4
{[%clk 0:00:05.8]} 58... Bh4 {[%clk 0:00:39.2]} 59. Ng3 {[%clk 0:00:05.8]} 59...
Bg5 {[%clk 0:00:39.1]} 60. Nf5 {[%clk 0:00:05.1]} 60... Bc1 {[%clk 0:00:39]} 61.
h4 {[%clk 0:00:05.3]} 61... Kf6 {[%clk 0:00:39.3]} 62. g5+ {[%clk 0:00:04.8]}
62... Ke5 {[%clk 0:00:39.4]} 63. g6 {[%clk 0:00:01.4]} 63... Kf6 {[%clk
0:00:40.3]} 1/2-1/2

[Event "*** Titled Tuesday Blitz"]
[Site "Chess.com"]
[Date "2021.03.16"]
[Round "4"]
[White "DenLaz"]
[Black "Gloomy_Wanderer"]
[Result "1-0"]
[WhiteElo "2849"]
[BlackElo "2687"]
[TimeControl "180+1"]
[EndTime "10:39:13 PDT"]
[Termination "DenLaz won on time"]

1. d4 {[%clk 0:03:00.9]} 1... Nf6 {[%clk 0:02:59.9]} 2. c4 {[%clk 0:03:01.5]}
2... e6 {[%clk 0:03:00]} 3. Nf3 {[%clk 0:03:02]} 3... d5 {[%clk 0:02:57.3]} 4.
Nc3 {[%clk 0:03:01.5]} 4... Bb4 {[%clk 0:02:57.3]} 5. Bg5 {[%clk 0:02:57.3]}
5... h6 {[%clk 0:02:56.5]} 6. Bxf6 {[%clk 0:02:55.6]} 6... Qxf6 {[%clk
0:02:56.5]} 7. e3 {[%clk 0:02:56.2]} 7... O-O {[%clk 0:02:56]} 8. Qb3 {[%clk
0:02:56.3]} 8... c5 {[%clk 0:02:45.9]} 9. cxd5 {[%clk 0:02:55.7]} 9... exd5
{[%clk 0:02:46.2]} 10. dxc5 {[%clk 0:02:54.4]} 10... Nc6 {[%clk 0:02:45.1]} 11.
O-O-O {[%clk 0:02:53.4]} 11... Bxc3 {[%clk 0:02:45.3]} 12. Qxc3 {[%clk
0:02:54.3]} 12... Qxc3+ {[%clk 0:02:45.5]} 13. bxc3 {[%clk 0:02:54.7]} 13... Be6
{[%clk 0:02:46.4]} 14. Nd4 {[%clk 0:02:48.3]} 14... Rfc8 {[%clk 0:02:44.4]} 15.
Kd2 {[%clk 0:02:45.2]} 15... Na5 {[%clk 0:02:39.2]} 16. Nb3 {[%clk 0:02:40.3]}
16... Nxb3+ {[%clk 0:02:36.3]} 17. axb3 {[%clk 0:02:41.2]} 17... Rxc5 {[%clk
0:02:36.9]} 18. b4 {[%clk 0:02:41.6]} 18... Rc7 {[%clk 0:02:36.8]} 19. Ra1
{[%clk 0:02:42]} 19... Rac8 {[%clk 0:02:36.7]} 20. Ra3 {[%clk 0:02:42.2]} 20...
a6 {[%clk 0:02:36.3]} 21. Be2 {[%clk 0:02:37.5]} 21... Kf8 {[%clk 0:02:35.3]}
22. h4 {[%clk 0:02:33.9]} 22... Ke7 {[%clk 0:02:34.4]} 23. Bf3 {[%clk
0:02:24.4]} 23... Kf6 {[%clk 0:02:33.1]} 24. Rc1 {[%clk 0:02:22.1]} 24... g5
{[%clk 0:02:31.9]} 25. g3 {[%clk 0:02:19.7]} 25... Ke5 {[%clk 0:02:28.2]} 26.
Ra5 {[%clk 0:02:16.9]} 26... Kd6 {[%clk 0:02:12]} 27. Ra3 {[%clk 0:01:22.5]}
27... Rc4 {[%clk 0:01:39]} 28. hxg5 {[%clk 0:01:19.3]} 28... hxg5 {[%clk
0:01:39.9]} 29. Rh1 {[%clk 0:01:19.3]} 29... Ke7 {[%clk 0:01:27.7]} 30. Rh5
{[%clk 0:01:18]} 30... Rg8 {[%clk 0:01:21.8]} 31. Ra5 {[%clk 0:01:12.8]} 31...
Rc7 {[%clk 0:01:12.7]} 32. Rh7 {[%clk 0:01:01.4]} 32... Rgc8 {[%clk 0:01:07.8]}
33. Ra3 {[%clk 0:01:00.2]} 33... Kf6 {[%clk 0:01:07.7]} 34. Be2 {[%clk
0:00:59.2]} 34... Bf5 {[%clk 0:01:02.3]} 35. Rh6+ {[%clk 0:00:58]} 35... Ke7
{[%clk 0:00:58.6]} 36. Rb6 {[%clk 0:00:56.6]} 36... Rd8 {[%clk 0:00:51.9]} 37.
b5 {[%clk 0:00:51.4]} 37... axb5 {[%clk 0:00:47.3]} 38. Rxb5 {[%clk 0:00:51.2]}
38... Kd6 {[%clk 0:00:37.9]} 39. Rab3 {[%clk 0:00:41.7]} 39... Ra8 {[%clk
0:00:20.5]} 40. Rb6+ {[%clk 0:00:36.4]} 40... Kd7 {[%clk 0:00:20.7]} 41. Rxb7
{[%clk 0:00:33.9]} 41... Ra2+ {[%clk 0:00:20.5]} 42. Rb2 {[%clk 0:00:29.7]}
42... Rxb7 {[%clk 0:00:17.4]} 43. Rxa2 {[%clk 0:00:28.7]} 43... Bb1 {[%clk
0:00:17.3]} 44. Ra5 {[%clk 0:00:26.1]} 44... Be4 {[%clk 0:00:14.4]} 45. Bb5+
{[%clk 0:00:22.1]} 45... Kd6 {[%clk 0:00:12.7]} 46. f4 {[%clk 0:00:14.6]} 46...
gxf4 {[%clk 0:00:12.6]} 47. exf4 {[%clk 0:00:15.1]} 47... Rb6 {[%clk 0:00:07.3]}
48. Ra6 {[%clk 0:00:14.4]} 48... Rxa6 {[%clk 0:00:07.2]} 49. Bxa6 {[%clk
0:00:15.3]} 49... Kc5 {[%clk 0:00:03.7]} 50. Ke3 {[%clk 0:00:15.6]} 50... Bf5
{[%clk 0:00:03.8]} 51. Be2 {[%clk 0:00:14.9]} 51... Bd7 {[%clk 0:00:01.8]} 52.
g4 {[%clk 0:00:15.3]} 52... Be6 {[%clk 0:00:02.1]} 53. g5 {[%clk 0:00:15.8]}
53... Bd7 {[%clk 0:00:01.8]} 54. Bd3 {[%clk 0:00:16.4]} 1-0

[Event "*** Titled Tuesday Blitz"]
[Site "Chess.com"]
[Date "2021.03.16"]
[Round "4"]
[White "Pantata007"]
[Black "Shuvalov"]
[Result "1-0"]
[WhiteElo "2347"]
[BlackElo "2478"]
[TimeControl "180+1"]
[EndTime "10:39:17 PDT"]
[Termination "Pantata007 won by checkmate"]

1. d4 {[%clk 0:03:00.9]} 1... Nf6 {[%clk 0:02:58.8]} 2. c4 {[%clk 0:03:01.2]}
2... g6 {[%clk 0:02:58]} 3. Nc3 {[%clk 0:03:01.1]} 3... d5 {[%clk 0:02:58.2]} 4.
cxd5 {[%clk 0:03:02]} 4... Nxd5 {[%clk 0:02:58.8]} 5. e4 {[%clk 0:03:02.4]} 5...
Nxc3 {[%clk 0:02:59]} 6. bxc3 {[%clk 0:03:03.3]} 6... Bg7 {[%clk 0:02:59.7]} 7.
Nf3 {[%clk 0:03:02.8]} 7... c5 {[%clk 0:02:59.4]} 8. Be3 {[%clk 0:03:02.4]} 8...
Qa5 {[%clk 0:02:55.3]} 9. Qd2 {[%clk 0:03:01.2]} 9... O-O {[%clk 0:02:54.6]} 10.
Rc1 {[%clk 0:02:58.5]} 10... cxd4 {[%clk 0:02:52.8]} 11. cxd4 {[%clk 0:02:58.7]}
11... Qxd2+ {[%clk 0:02:52.9]} 12. Kxd2 {[%clk 0:02:55.1]} 12... Nc6 {[%clk
0:02:41.2]} 13. Bd3 {[%clk 0:02:05.8]} 13... Bg4 {[%clk 0:02:34.4]} 14. d5
{[%clk 0:02:02.3]} 14... Bxf3 {[%clk 0:02:11.4]} 15. gxf3 {[%clk 0:02:01.6]}
15... Ne5 {[%clk 0:02:07.5]} 16. Be2 {[%clk 0:02:01.5]} 16... f5 {[%clk
0:01:49.3]} 17. Rc7 {[%clk 0:01:52]} 17... fxe4 {[%clk 0:01:34.1]} 18. fxe4
{[%clk 0:01:51.5]} 18... Rac8 {[%clk 0:01:08.4]} 19. Rxe7 {[%clk 0:01:27.8]}
19... Nc4+ {[%clk 0:01:06.2]} 20. Bxc4 {[%clk 0:01:27.2]} 20... Rxc4 {[%clk
0:01:07.1]} 21. Rc1 {[%clk 0:01:14.4]} 21... Rfc8 {[%clk 0:01:02.8]} 22. Rxc4
{[%clk 0:01:11.5]} 22... Rxc4 {[%clk 0:01:03.7]} 23. Kd3 {[%clk 0:00:56.7]}
23... Rc3+ {[%clk 0:01:01.6]} 24. Kd2 {[%clk 0:00:55.7]} 24... Ra3 {[%clk
0:01:01.5]} 25. Rxb7 {[%clk 0:00:44.7]} 25... Rxa2+ {[%clk 0:01:01.1]} 26. Kd3
{[%clk 0:00:45.1]} 26... Ra3+ {[%clk 0:00:59.8]} 27. Kc4 {[%clk 0:00:43.7]}
27... Ra4+ {[%clk 0:00:52.4]} 28. Rb4 {[%clk 0:00:42.1]} 28... Ra2 {[%clk
0:00:46.8]} 29. d6 {[%clk 0:00:33.1]} 29... Bf6 {[%clk 0:00:44.2]} 30. Rb8+
{[%clk 0:00:26.5]} 30... Kf7 {[%clk 0:00:44.1]} 31. d7 {[%clk 0:00:21.7]} 31...
Ra4+ {[%clk 0:00:37.2]} 32. Kd3 {[%clk 0:00:15.4]} 32... Ra1 {[%clk 0:00:36.4]}
33. d8=Q {[%clk 0:00:12.3]} 33... Bxd8 {[%clk 0:00:35.8]} 34. Rxd8 {[%clk
0:00:13.2]} 34... Rd1+ {[%clk 0:00:35.3]} 35. Bd2 {[%clk 0:00:13.7]} 35... Rh1
{[%clk 0:00:35.1]} 36. Rd7+ {[%clk 0:00:12.7]} 36... Ke6 {[%clk 0:00:33.5]} 37.
Rxh7 {[%clk 0:00:12.5]} 37... a6 {[%clk 0:00:33.1]} 38. Bf4 {[%clk 0:00:12.1]}
38... a5 {[%clk 0:00:31.4]} 39. Ra7 {[%clk 0:00:12.2]} 39... Ra1 {[%clk
0:00:31]} 40. Bd2 {[%clk 0:00:07.5]} 40... a4 {[%clk 0:00:29.8]} 41. f4 {[%clk
0:00:08]} 41... Ra3+ {[%clk 0:00:27.1]} 42. Bc3 {[%clk 0:00:07.5]} 42... Ra2
{[%clk 0:00:26.5]} 43. Ra6+ {[%clk 0:00:07.4]} 43... Kf7 {[%clk 0:00:25.7]} 44.
f5 {[%clk 0:00:07.3]} 44... gxf5 {[%clk 0:00:25.5]} 45. exf5 {[%clk 0:00:08.2]}
45... Rf2 {[%clk 0:00:22.7]} 46. f6 {[%clk 0:00:08]} 46... Rxh2 {[%clk
0:00:19.8]} 47. Ra7+ {[%clk 0:00:07.8]} 47... Kg6 {[%clk 0:00:14.3]} 48. Rg7+
{[%clk 0:00:05.6]} 48... Kh6 {[%clk 0:00:14]} 49. f7 {[%clk 0:00:05.5]} 49...
Rh3+ {[%clk 0:00:12.7]} 50. Ke4 {[%clk 0:00:04.8]} 50... Rxc3 {[%clk 0:00:11]}
51. f8=Q {[%clk 0:00:04.3]} 51... Rc4+ {[%clk 0:00:10.9]} 52. Kd3 {[%clk
0:00:04.3]} 52... Rc8 {[%clk 0:00:09.5]} 53. Qf6+ {[%clk 0:00:03.3]} 53... Kh5
{[%clk 0:00:09.2]} 54. Qg5# {[%clk 0:00:04.2]} 1-0

[Event "*** Titled Tuesday Blitz"]
[Site "Chess.com"]
[Date "2021.03.16"]
[Round "4"]
[White "MasterKroket"]
[Black "Kotofeyca"]
[Result "1-0"]
[WhiteElo "2502"]
[BlackElo "2350"]
[TimeControl "180+1"]
[EndTime "10:39:18 PDT"]
[Termination "MasterKroket won by resignation"]

1. d4 {[%clk 0:03:00.9]} 1... d5 {[%clk 0:02:56.3]} 2. c4 {[%clk 0:03:01.5]}
2... c6 {[%clk 0:02:56.8]} 3. Nf3 {[%clk 0:03:01.7]} 3... Nf6 {[%clk 0:02:57.3]}
4. Nc3 {[%clk 0:03:02.4]} 4... dxc4 {[%clk 0:02:56.3]} 5. a4 {[%clk 0:03:02.4]}
5... Bg4 {[%clk 0:02:54.6]} 6. Ne5 {[%clk 0:03:01.8]} 6... Bh5 {[%clk
0:02:54.6]} 7. g3 {[%clk 0:02:57.7]} 7... e6 {[%clk 0:02:53.2]} 8. Bg2 {[%clk
0:02:57.3]} 8... Bb4 {[%clk 0:02:53.4]} 9. O-O {[%clk 0:02:57.1]} 9... Nd5
{[%clk 0:02:53.7]} 10. Qc2 {[%clk 0:02:51.9]} 10... a5 {[%clk 0:02:49.3]} 11.
Nxc4 {[%clk 0:02:42.6]} 11... Nb6 {[%clk 0:02:48.9]} 12. Nxb6 {[%clk 0:02:31.6]}
12... Qxb6 {[%clk 0:02:49.8]} 13. Be3 {[%clk 0:02:23.2]} 13... Qa6 {[%clk
0:02:46.9]} 14. Be4 {[%clk 0:02:11.3]} 14... Bg6 {[%clk 0:02:42.1]} 15. Rac1
{[%clk 0:01:59]} 15... Nd7 {[%clk 0:02:39.6]} 16. Rfd1 {[%clk 0:01:56.7]} 16...
Nf6 {[%clk 0:02:35.2]} 17. Bd3 {[%clk 0:01:53.4]} 17... Bxd3 {[%clk 0:02:32.4]}
18. Qxd3 {[%clk 0:01:53.6]} 18... Qxd3 {[%clk 0:02:31.3]} 19. Rxd3 {[%clk
0:01:54.5]} 19... Nd5 {[%clk 0:02:27.4]} 20. Bd2 {[%clk 0:01:53]} 20... Be7
{[%clk 0:02:23.4]} 21. Nxd5 {[%clk 0:01:49.2]} 21... exd5 {[%clk 0:02:20.7]} 22.
Rb3 {[%clk 0:01:49.5]} 22... Ra7 {[%clk 0:02:11.2]} 23. f3 {[%clk 0:01:48.7]}
23... f5 {[%clk 0:02:09.8]} 24. e4 {[%clk 0:01:47]} 24... fxe4 {[%clk
0:02:08.1]} 25. fxe4 {[%clk 0:01:46.7]} 25... dxe4 {[%clk 0:02:08.4]} 26. Re1
{[%clk 0:01:46.8]} 26... Kd7 {[%clk 0:01:57.1]} 27. Rxe4 {[%clk 0:01:45.3]}
27... Bf6 {[%clk 0:01:57.6]} 28. Kf2 {[%clk 0:01:39]} 28... Re8 {[%clk 0:01:47]}
29. Rxe8 {[%clk 0:01:33.7]} 29... Kxe8 {[%clk 0:01:47.9]} 30. Ke3 {[%clk
0:01:34.2]} 30... Kd7 {[%clk 0:01:47.5]} 31. Ke4 {[%clk 0:01:34.4]} 31... Ke6
{[%clk 0:01:45.4]} 32. Rf3 {[%clk 0:01:31]} 32... b5 {[%clk 0:01:34]} 33. axb5
{[%clk 0:01:25.7]} 33... cxb5 {[%clk 0:01:33.7]} 34. Rf5 {[%clk 0:01:26.4]}
34... Bxd4 {[%clk 0:01:18.1]} 35. Rxb5 {[%clk 0:01:23.3]} 35... Bg1 {[%clk
0:01:17.3]} 36. h3 {[%clk 0:01:20.8]} 36... a4 {[%clk 0:01:15.4]} 37. Bc3 {[%clk
0:01:16.8]} 37... g6 {[%clk 0:01:11.4]} 38. Bb4 {[%clk 0:01:06.8]} 38... Rc7
{[%clk 0:00:57.8]} 39. Re5+ {[%clk 0:01:01.9]} 39... Kf6 {[%clk 0:00:53]} 40.
Bc3 {[%clk 0:01:00]} 40... Rc4+ {[%clk 0:00:45.5]} 41. Kd5 {[%clk 0:00:49.9]}
41... Rc5+ {[%clk 0:00:37.1]} 42. Ke4 {[%clk 0:00:45.7]} 42... Rxe5+ {[%clk
0:00:31.3]} 43. Bxe5+ {[%clk 0:00:45.9]} 43... Ke6 {[%clk 0:00:31.9]} 44. Bd4
{[%clk 0:00:45.2]} 44... Bh2 {[%clk 0:00:30]} 45. Kf3 {[%clk 0:00:44.9]} 45...
Kd5 {[%clk 0:00:29.1]} 46. Ba7 {[%clk 0:00:38.9]} 46... h5 {[%clk 0:00:16.4]}
47. Kg2 {[%clk 0:00:39]} 47... Bxg3 {[%clk 0:00:16.5]} 48. Kxg3 {[%clk
0:00:39.4]} 48... g5 {[%clk 0:00:16.7]} 49. Be3 {[%clk 0:00:37.5]} 49... g4
{[%clk 0:00:15.6]} 50. h4 {[%clk 0:00:35.8]} 50... Ke4 {[%clk 0:00:15.3]} 51.
Bc5 {[%clk 0:00:33.5]} 51... Kd3 {[%clk 0:00:13]} 52. Bf8 {[%clk 0:00:26.7]}
52... Kc2 {[%clk 0:00:12.4]} 53. Bg7 {[%clk 0:00:26.3]} 53... Kb3 {[%clk
0:00:12.5]} 54. Kf4 {[%clk 0:00:25.8]} 54... Kc2 {[%clk 0:00:07]} 55. Be5 {[%clk
0:00:24.8]} 55... Kb3 {[%clk 0:00:06.2]} 56. Kg5 {[%clk 0:00:25.1]} 56... g3
{[%clk 0:00:05.5]} 57. Bxg3 {[%clk 0:00:25.3]} 57... Kxb2 {[%clk 0:00:06]} 58.
Kxh5 {[%clk 0:00:25.8]} 58... a3 {[%clk 0:00:05.7]} 59. Kg6 {[%clk 0:00:26.5]}
59... Kb1 {[%clk 0:00:05.8]} 60. Be5 {[%clk 0:00:26.6]} 60... a2 {[%clk
0:00:06.7]} 61. h5 {[%clk 0:00:26.9]} 61... Kc2 {[%clk 0:00:06.6]} 62. h6 {[%clk
0:00:26.7]} 62... Kd3 {[%clk 0:00:06.9]} 63. h7 {[%clk 0:00:26.9]} 63... a1=Q
{[%clk 0:00:07.8]} 64. Bxa1 {[%clk 0:00:26.8]} 1-0

[Event "*** Titled Tuesday Blitz"]
[Site "Chess.com"]
[Date "2021.03.16"]
[Round "4"]
[White "MaevskiyNikolay"]
[Black "eightbyeightchess"]
[Result "1-0"]
[WhiteElo "2546"]
[BlackElo "2372"]
[TimeControl "180+1"]
[EndTime "10:39:19 PDT"]
[Termination "MaevskiyNikolay won by checkmate"]

1. d4 {[%clk 0:03:00.9]} 1... d5 {[%clk 0:02:59.9]} 2. c4 {[%clk 0:03:01.2]}
2... c6 {[%clk 0:02:59.6]} 3. Nf3 {[%clk 0:03:01.8]} 3... Nf6 {[%clk 0:02:59.7]}
4. e3 {[%clk 0:03:02.7]} 4... a6 {[%clk 0:02:58.8]} 5. b3 {[%clk 0:03:02.4]}
5... Bg4 {[%clk 0:02:58.6]} 6. Nbd2 {[%clk 0:03:01.9]} 6... e6 {[%clk
0:02:58.8]} 7. Bd3 {[%clk 0:03:01.4]} 7... Bd6 {[%clk 0:02:58.3]} 8. Bb2 {[%clk
0:03:01.1]} 8... O-O {[%clk 0:02:57.6]} 9. Qc2 {[%clk 0:03:01]} 9... Nbd7 {[%clk
0:02:57]} 10. h3 {[%clk 0:03:00.2]} 10... Bh5 {[%clk 0:02:56.3]} 11. Ne5 {[%clk
0:03:00.3]} 11... c5 {[%clk 0:02:41.7]} 12. Nxd7 {[%clk 0:02:54.3]} 12... Qxd7
{[%clk 0:02:39.2]} 13. dxc5 {[%clk 0:02:53.5]} 13... Bxc5 {[%clk 0:02:37]} 14.
Bxf6 {[%clk 0:02:53.3]} 14... gxf6 {[%clk 0:02:37.9]} 15. Bxh7+ {[%clk
0:02:50.6]} 15... Kg7 {[%clk 0:02:38.2]} 16. cxd5 {[%clk 0:02:47.9]} 16... Bb4
{[%clk 0:02:33.2]} 17. Be4 {[%clk 0:02:43.6]} 17... Rac8 {[%clk 0:02:28]} 18.
Qd3 {[%clk 0:02:34.8]} 18... exd5 {[%clk 0:02:12.6]} 19. Bf5 {[%clk 0:02:33.2]}
19... Rc3 {[%clk 0:01:36.9]} 20. Qxc3 {[%clk 0:01:54.6]} 20... Bxc3 {[%clk
0:01:37.8]} 21. Bxd7 {[%clk 0:01:54.1]} 21... Bxa1 {[%clk 0:01:31.6]} 22. O-O
{[%clk 0:01:52.9]} 22... Bc3 {[%clk 0:01:24.7]} 23. Nb1 {[%clk 0:01:52.9]} 23...
Bb4 {[%clk 0:01:20.5]} 24. a3 {[%clk 0:01:49.4]} 24... Be7 {[%clk 0:01:19.8]}
25. Rc1 {[%clk 0:01:44.8]} 25... Rd8 {[%clk 0:01:19.5]} 26. Rc7 {[%clk
0:01:43.9]} 26... Bg6 {[%clk 0:01:03.3]} 27. Nc3 {[%clk 0:01:39.5]} 27... Bxa3
{[%clk 0:01:01.5]} 28. Rxb7 {[%clk 0:01:38.3]} 28... Bb2 {[%clk 0:00:55]} 29.
Ne2 {[%clk 0:01:26.5]} 29... a5 {[%clk 0:00:30.6]} 30. f3 {[%clk 0:01:24.2]}
30... Bc2 {[%clk 0:00:26.6]} 31. Be6 {[%clk 0:01:19.1]} 31... Bg6 {[%clk
0:00:16]} 32. Bd7 {[%clk 0:01:01.7]} 32... Kh6 {[%clk 0:00:11.6]} 33. Kf2 {[%clk
0:00:59.8]} 33... Ra8 {[%clk 0:00:08.1]} 34. Nf4 {[%clk 0:00:57.7]} 34... Ra6
{[%clk 0:00:05]} 35. Nxd5 {[%clk 0:00:54]} 35... Rd6 {[%clk 0:00:05.1]} 36. e4
{[%clk 0:00:54.5]} 36... Bd4+ {[%clk 0:00:04.5]} 37. Ke2 {[%clk 0:00:54]} 37...
f5 {[%clk 0:00:05.1]} 38. Kd3 {[%clk 0:00:49.7]} 38... Bg1 {[%clk 0:00:03.8]}
39. Kc4 {[%clk 0:00:20.1]} 39... fxe4 {[%clk 0:00:03.8]} 40. Nf4 {[%clk
0:00:15.6]} 40... e3 {[%clk 0:00:02.7]} 41. Bg4 {[%clk 0:00:11.5]} 41... Rf6
{[%clk 0:00:01.6]} 42. Ne2 {[%clk 0:00:11.1]} 42... Rd6 {[%clk 0:00:01.4]} 43.
Nxg1 {[%clk 0:00:10.8]} 43... Bd3+ {[%clk 0:00:01.6]} 44. Kc3 {[%clk 0:00:10.6]}
44... e2 {[%clk 0:00:02.3]} 45. Nxe2 {[%clk 0:00:10.8]} 45... Bxe2 {[%clk
0:00:03.2]} 46. Rxf7 {[%clk 0:00:10.8]} 46... Rd3+ {[%clk 0:00:03]} 47. Kc2
{[%clk 0:00:10.5]} 47... Rd6 {[%clk 0:00:03.5]} 48. Rf4 {[%clk 0:00:10.2]} 48...
Bf1 {[%clk 0:00:04.1]} 49. Bf5 {[%clk 0:00:09.4]} 49... Kg5 {[%clk 0:00:04.6]}
50. g3 {[%clk 0:00:09.2]} 50... Rf6 {[%clk 0:00:04.3]} 51. h4+ {[%clk
0:00:09.5]} 51... Kh6 {[%clk 0:00:04.2]} 52. g4 {[%clk 0:00:09.5]} 52... Rc6+
{[%clk 0:00:04.8]} 53. Kb2 {[%clk 0:00:09.4]} 53... Bg2 {[%clk 0:00:05.7]} 54.
Be4 {[%clk 0:00:09.3]} 54... Rd6 {[%clk 0:00:06.1]} 55. Kc3 {[%clk 0:00:09.1]}
55... Kg7 {[%clk 0:00:06.7]} 56. h5 {[%clk 0:00:09.3]} 56... Rd1 {[%clk
0:00:07.2]} 57. g5 {[%clk 0:00:09.5]} 57... Rh1 {[%clk 0:00:07.2]} 58. h6+
{[%clk 0:00:09.6]} 58... Kh8 {[%clk 0:00:07.4]} 59. Rf8# {[%clk 0:00:08.6]} 1-0